bitfinex-derivatives/quotes_ETHF0:USTF0_20250828
["timestamp","ask_amount","ask_price","bid_price","bid_amount"]
[1756351533294,1.3185,4531.8,4531.7,0.8031]
[1756351533492,21.6135,4531.8,4531.7,0.8031]
[1756351533793,21.2635,4531.8,4531.5,0.3051]
[1756351533989,0.9685,4531.6,4531.5,0.9958]
[1756351534190,1.3185,4531.6,4531.5,1.6932]
[1756351535694,1.3185,4531.6,4531.5,1.2617]
[1756351536088,1.3185,4531.6,4531.5,1.6932]
[1756351536693,1.0119,4531.6,4531.5,1.6932]
[1756351537288,1.3185,4531.6,4531.5,1.6932]
[1756351537899,1.3185,4531.6,4531.5,0.5995]
[1756351539389,0.2484,4531.4,4531.2,0.4315]
[1756351539596,0.5812,4531.4,4531.3,1.6932]
[1756351540203,1.3185,4531.4,4531.3,1.6932]
[1756351541214,1.3185,4531.4,4531.3,0.7922]
[1756351541702,1.3185,4531.4,4531.3,1.2617]
[1756351541904,1.3185,4531.4,4531.3,1.6932]
[1756351545102,1.3185,4531.4,4531.3,0.9958]
[1756351545311,1.3185,4531.4,4531.3,1.6932]
[1756351546605,1.0119,4531.4,4531.3,1.6932]
[1756351547505,3.4128,4531.6,4531.5,1.6932]
[1756351547708,12.0278,4531.6,4531.5,1.6932]
[1756351548012,12.4585,4531.6,4531.5,1.6932]
[1756351548213,12.6635,4531.6,4531.5,1.6932]
[1756351549017,12.9269,4531.6,4531.5,1.6932]
[1756351549518,0.4307,4531.6,4531.5,1.6932]
[1756351550213,0.6357,4531.6,4531.5,1.6932]
[1756351550708,3.2078,4532.7,4532.1,1.6932]
[1756351551019,3.7456,4533.4,4533.3,1.2617]
[1756351551311,3.7456,4533.4,4533.3,1.6932]
[1756351551513,4.1594,4533.4,4533.3,1.6932]
[1756351551716,4.2026,4533.4,4533.3,1.6932]
[1756351552210,3.2078,4533.4,4533.3,1.6932]
[1756351552616,3.6216,4533.9,4533.3,1.031]
[1756351552812,4.1846,4533.9,4533.8,1.6555]
[1756351553310,3.2078,4533.9,4533.8,1.6555]
[1756351553508,0.4138,4534.2,4534.1,1.6555]
[1756351553709,0.9768,4534.2,4534.1,1.6555]
[1756351553904,1.2555,4534.2,4534.1,0.9683]
[1756351554103,1.2555,4534.2,4534.1,0.7681]
[1756351554711,1.2555,4534.2,4534.1,1.6555]
[1756351557422,0.9336,4534.2,4534.1,1.6555]
[1756351559624,0.9768,4534.2,4534.1,1.6555]
[1756351560119,0.9336,4534.2,4534.1,1.6555]
[1756351560323,0.8644,4534.2,4534.1,1.6555]
[1756351560824,20.6978,4534.3,4534.2,0.972]
[1756351561016,20.6978,4534.3,4534.2,1.6555]
[1756351561217,20.8839,4534.3,4534.2,1.6555]
[1756351562124,21.1484,4534.3,4534.2,1.6555]
[1756351562516,21.2592,4534.3,4534.2,1.6555]
[1756351563521,3.2078,4534.9,4534.8,0.39689]
[1756351563720,3.2078,4534.9,4534.8,2.05239]
[1756351564117,3.2078,4535.4,4535.0,0.972]
[1756351564320,3.7692,4535.4,4535.3,1.6555]
[1756351564724,4.183,4535.4,4535.3,1.6555]
[1756351565828,4.4617,4535.4,4535.3,1.6555]
[1756351566428,3.7266,4535.4,4535.2,41.3722]
[1756351566629,0.7351,4535.3,4535.2,41.3722]
[1756351567124,0.7351,4535.3,4535.2,0.5722]
[1756351567336,1.2539,4535.3,4535.2,0.7724]
[1756351567517,1.2539,4535.3,4535.2,0.9683]
[1756351568930,1.2539,4535.3,4535.2,1.6555]
[1756351570024,0.5999,4535.3,4535.2,2.05236]
[1756351570230,0.5999,4535.3,4535.2,1.6555]
[1756351570732,0.9752,4535.3,4535.2,1.6555]
[1756351575130,1.2539,4535.3,4535.2,1.6555]
[1756351576023,0.5999,4535.3,4535.2,1.6555]
[1756351576328,23.8926,4535.9,4535.8,1.6555]
[1756351576531,23.4788,4535.9,4535.8,1.6555]
[1756351576932,23.8926,4535.9,4535.8,1.6555]
[1756351577232,24.3432,4535.9,4535.8,1.6555]
[1756351577620,24.3858,4535.9,4535.8,1.6555]
[1756351578635,24.3432,4535.9,4535.8,1.6555]
[1756351578831,24.3858,4535.9,4535.8,1.6555]
[1756351579133,24.7327,4535.9,4535.8,1.6555]
[1756351579734,24.7297,4535.9,4535.8,1.6555]
[1756351580729,4.183,4535.9,4535.8,1.6555]
[1756351580934,24.4074,4535.9,4535.8,1.6555]
[1756351581134,24.7287,4535.9,4535.8,1.6555]
[1756351582136,24.7287,4535.9,4535.8,1.2557]
[1756351582334,24.7287,4535.9,4535.8,1.6512]
[1756351582635,24.45,4535.9,4535.8,1.6512]
[1756351582931,24.7357,4535.9,4535.8,1.6512]
[1756351583132,1.2331,4535.2,4535.1,1.2503]
[1756351583332,1.277,4535.2,4535.1,1.6458]
[1756351583630,0.0439,4535.6,4535.1,1.6458]
[1756351583830,0.0439,4535.6,4535.4,1.6458]
[1756351583831,20.8634,4535.5,4535.4,1.6458]
[1756351584235,21.1421,4535.5,4535.4,1.6458]
[1756351585828,21.542,4535.5,4535.4,0.5923]
[1756351586229,1.277,4535.2,4534.8,0.3955]
[1756351586430,1.277,4534.9,4534.8,1.0535]
[1756351586630,1.277,4534.9,4534.8,0.3858]
[1756351586832,1.277,4534.9,4534.8,0.9781]
[1756351587229,1.277,4534.9,4534.8,1.6458]
[1756351587441,21.541,4534.9,4534.8,1.6458]
[1756351587739,1.277,4534.9,4534.8,1.6458]
[1756351588743,0.9913,4534.9,4534.8,1.6458]
[1756351591943,0.9474,4534.9,4534.8,1.6458]
[1756351592139,20.6611,4535.0,4534.9,0.9878]
[1756351592446,0.5984,4535.0,4534.9,1.6458]
[1756351593447,0.8771,4535.0,4534.9,1.6458]
[1756351593640,0.921,4535.0,4534.9,1.6458]
[1756351594036,0.9913,4535.0,4534.9,1.6458]
[1756351594541,1.277,4535.0,4534.9,1.6458]
[1756351598548,0.9913,4535.0,4534.9,1.6458]
[1756351608057,1.277,4535.0,4534.9,0.9781]
[1756351608257,1.277,4535.0,4534.9,0.7842]
[1756351608556,1.277,4535.0,4534.9,1.6458]
[1756351614064,1.277,4535.0,4534.9,1.6639]
[1756351614365,0.9913,4535.0,4534.9,1.6639]
[1756351616158,1.2791,4535.0,4534.9,0.9781]
[1756351616366,1.2791,4535.0,4534.9,1.3917]
[1756351616660,0.0427,4534.7,4534.5,2.24542044]
[1756351616860,0.4404,4534.3,4534.1,0.2779]
[1756351617058,24.7395,4534.2,4534.1,0.585]
[1756351618366,24.7395,4534.2,4534.1,0.9778]
[1756351618565,24.7395,4534.2,4534.1,0.585]
[1756351619769,24.7395,4534.2,4534.1,1.3914]
[1756351620160,24.7395,4534.2,4534.1,1.6631]
[1756351622665,24.7395,4534.2,4534.1,0.585]
[1756351623658,24.7395,4534.2,4533.8,0.585]
[1756351623659,1.2828,4533.9,4533.8,0.585]
[1756351623860,1.2828,4533.3,4533.2,2.55252044]
[1756351624068,21.5348,4533.3,4533.2,1.6631]
[1756351625661,21.5348,4533.3,4532.9,0.4136]
[1756351625967,0.995,4533.1,4533.0,1.6631]
[1756351626165,21.246,4533.1,4533.0,1.6631]
[1756351626969,1.2828,4533.1,4533.0,1.6631]
[1756351627171,21.5348,4533.1,4533.0,1.6631]
[1756351629970,21.247,4533.1,4533.0,1.6631]
[1756351630173,3.2521,4533.5,4533.0,4.2206]
[1756351630371,3.2521,4533.5,4533.4,1.6631]
[1756351630372,3.2078,4533.5,4533.4,1.6631]
[1756351630558,3.69,4534.0,4533.9,1.06147]
[1756351630872,4.0877,4534.0,4533.9,2.06007]
[1756351631070,0.3321,4534.4,4534.3,1.06144]
[1756351631071,0.3977,4534.4,4534.3,1.06144]
[1756351631259,0.205,4534.7,4534.6,2.06001]
[1756351631457,0.6027,4534.7,4534.6,2.06001]
[1756351631657,0.8799,4534.7,4534.6,2.06001]
[1756351632271,20.252,4534.8,4534.7,1.6631]
[1756351633966,20.6497,4534.8,4534.7,1.6631]
[1756351634169,3.2078,4535.0,4534.8,0.39689]
[1756351634471,3.2078,4535.0,4534.9,1.6631]
[1756351634661,3.2078,4535.0,4534.0,0.99239]
[1756351634662,0.9507,4535.3,4535.2,1.6631]
[1756351634864,0.3977,4535.7,4535.6,1.59842]
[1756351635171,0.6027,4535.7,4535.6,2.05992]
[1756351635869,3.2078,4535.8,4535.6,42.85992]
[1756351636064,3.2078,4535.8,4535.7,1.6631]
[1756351637063,4.0877,4535.8,4535.7,1.6631]
[1756351638963,4.2028,4535.8,4535.7,1.6631]
[1756351642467,3.2078,4535.8,4535.7,1.6631]
[1756351642971,4.1467,4535.8,4535.7,1.6631]
[1756351643574,4.0788,4535.8,4535.7,1.6631]
[1756351644070,3.2078,4535.8,4535.7,1.6631]
[1756351644770,0.4053,4536.2,4535.7,1.6631]
[1756351644974,0.4053,4536.2,4536.1,2.06288]
[1756351645267,0.192,4536.6,4536.5,2.06285]
[1756351645471,0.871,4536.6,4536.5,2.06285]
[1756351645674,0.9134,4536.6,4536.5,42.86285]
[1756351646073,0.871,4536.6,4536.5,42.86285]
[1756351647568,3.6131,4536.8,4536.7,2.06283]
[1756351647771,0.9134,4537.1,4537.0,1.7752]
[1756351647971,3.2078,4537.3,4536.5,44.0078]
[1756351647972,3.2078,4537.3,4537.2,1.07938]
[1756351648173,0.9813,4537.6,4537.5,2.06275]
[1756351648569,1.2743,4537.6,4537.5,2.06275]
[1756351649074,1.2743,4537.6,4537.5,1.269]
[1756351649280,1.2743,4537.6,4537.5,0.987]
[1756351650775,1.2743,4537.6,4537.5,1.6661]
[1756351651079,0.9389,4537.6,4537.5,1.6661]
[1756351651280,0.9813,4537.6,4537.5,1.6661]
[1756351651779,1.2743,4537.6,4537.5,1.6661]
[1756351652779,1.2743,4537.6,4537.5,1.269]
[1756351653278,1.2743,4537.6,4537.5,1.6661]
[1756351654077,1.2743,4537.6,4537.5,0.7868]
[1756351654274,1.2743,4537.6,4537.5,0.987]
[1756351654673,21.5053,4537.6,4537.5,0.987]
[1756351654875,21.5053,4537.6,4537.5,0.5863]
[1756351655172,1.2319,4537.1,4537.0,1.1832]
[1756351655378,21.5043,4537.1,4537.0,0.5863]
[1756351656782,21.5043,4537.1,4537.0,0.987]
[1756351656973,21.5043,4537.1,4537.0,1.6661]
[1756351658775,3.7414,4537.7,4537.6,1.6661]
[1756351658982,4.0344,4537.7,4537.6,1.6661]
[1756351659375,4.4821,4537.7,4537.2,0.6847]
[1756351659582,1.2743,4537.3,4537.2,0.68428]
[1756351659778,1.2743,4537.3,4537.2,0.2876]
[1756351659981,1.2743,4537.3,4537.2,0.5863]
[1756351660177,1.2743,4537.3,4537.2,1.6661]
[1756351662082,0.9813,4537.3,4537.2,1.6661]
[1756351662275,0.9389,4537.3,4537.2,1.6661]
[1756351662481,0.871,4537.3,4537.2,1.6661]
[1756351666393,3.5008,4537.7,4537.6,0.2005]
[1756351666394,3.2078,4537.7,4537.6,0.2005]
[1756351666584,3.2078,4537.7,4537.6,1.6661]
[1756351666992,4.4821,4537.7,4537.6,1.6661]
[1756351667185,4.4821,4537.7,4537.6,0.7868]
[1756351667382,4.4821,4537.7,4537.6,1.269]
[1756351667589,4.4821,4537.7,4537.6,1.6661]
[1756351667893,4.4821,4537.7,4537.6,1.269]
[1756351668991,4.4821,4537.7,4537.6,0.2987]
[1756351669192,4.4821,4537.7,4537.4,0.2876]
[1756351669386,0.0424,4537.6,4537.4,0.5863]
[1756351669595,1.2319,4537.5,4537.4,0.5863]
[1756351669795,1.2743,4537.5,4537.4,0.5863]
[1756351670990,1.2743,4537.5,4537.4,1.269]
[1756351671295,1.2743,4537.5,4537.4,1.6661]
[1756351671891,0.9813,4537.5,4537.4,1.6661]
[1756351672195,0.9389,4537.5,4537.4,1.6661]
[1756351673290,1.2851,4537.5,4537.4,1.6661]
[1756351673691,1.2851,4537.5,4537.4,1.269]
[1756351674300,0.9819,4537.5,4537.4,1.6961]
[1756351674895,0.871,4537.5,4537.4,1.6961]
[1756351675199,0.9741,4537.6,4537.5,1.6902]
[1756351675996,0.9311,4537.6,4537.5,1.6902]
[1756351677003,0.9741,4537.6,4537.5,1.6902]
[1756351677705,1.2773,4537.6,4537.5,1.6902]
[1756351677902,1.2773,4537.6,4537.5,1.2631]
[1756351678096,1.2773,4537.6,4537.5,1.6902]
[1756351678794,0.9741,4537.6,4537.5,1.6902]
[1756351678999,1.2773,4537.6,4537.5,1.6902]
[1756351679400,0.9741,4537.6,4537.5,1.6902]
[1756351679604,0.8623,4537.6,4537.5,1.6902]
[1756351679903,0.9741,4537.6,4537.5,1.6902]
[1756351680503,0.9311,4537.6,4537.5,1.6902]
[1756351680705,1.2777,4537.6,4537.5,1.6902]
[1756351681101,1.2777,4537.6,4537.5,0.8051]
[1756351681305,1.2777,4537.6,4537.5,0.6026]
[1756351683209,1.28057442,4537.6,4537.5,0.6026]
[1756351683602,1.28057442,4537.6,4537.5,0.9931]
[1756351683903,1.28057442,4537.6,4537.5,1.6902]
[1756351684411,0.97737442,4537.6,4537.5,1.6902]
[1756351685304,1.28057442,4537.6,4537.5,1.6902]
[1756351685902,1.28057442,4537.6,4537.5,1.2631]
[1756351686506,1.28057442,4537.6,4537.5,1.6902]
[1756351686913,0.97737442,4537.6,4537.5,1.6902]
[1756351690309,0.86517442,4537.6,4537.5,1.6902]
[1756351693816,0.00287442,4537.6,4537.5,1.6902]
[1756351694909,0.00287442,4537.6,4537.5,2.08686]
[1756351695111,3.2078,4538.2,4538.1,1.388]
[1756351695316,3.2078,4538.2,4538.1,3.08282776]
[1756351696220,3.5987,4538.7,4538.6,0.6605]
[1756351696519,3.5987,4538.7,4538.6,1.6902]
[1756351696916,0.3909,4539.2,4538.7,1.0297]
[1756351697121,4.0701,4539.3,4539.2,1.6902]
[1756351697620,4.1829,4539.3,4539.2,1.6902]
[1756351698023,4.4861,4539.3,4539.2,1.6902]
[1756351699822,4.4861,4539.3,4539.2,1.2631]
[1756351700420,24.6931,4539.3,4539.2,1.2631]
[1756351700625,24.6931,4539.3,4539.2,1.6902]
[1756351702525,24.6931,4539.3,4539.2,1.2631]
[1756351702928,24.6931,4539.3,4539.2,1.6767]
[1756351703324,4.1384,4539.3,4539.2,1.6767]
[1756351703524,4.47,4539.3,4539.2,1.6767]
[1756351704132,1.2622,4538.9,4538.8,0.3024]
[1756351704425,1.2622,4538.7,4538.6,0.5889]
[1756351704618,1.2622,4538.5,4538.4,0.3024]
[1756351704823,1.2622,4538.5,4538.4,0.5889]
[1756351704824,21.4662,4538.5,4538.4,0.5889]
[1756351705430,20.204,4538.5,4538.0,0.5889]
[1756351705632,1.2622,4538.2,4538.1,1.6645]
[1756351705829,1.2622,4538.2,4538.1,1.2509]
[1756351705830,4.47,4538.2,4538.1,1.2509]
[1756351708027,4.47,4538.2,4538.1,0.5889]
[1756351708732,4.47,4538.2,4538.1,1.6645]
[1756351711133,0.2887,4539.6,4539.5,0.1907]
[1756351711332,1.1507,4539.6,4539.5,2.36602776]
[1756351711634,0.2791,4539.6,4539.5,2.36602776]
[1756351711834,0.5678,4539.9,4539.5,2.17360776]
[1756351712030,0.6735,4539.8,4539.7,0.3845]
[1756351712236,0.6735,4539.8,4539.7,0.9734]
[1756351712427,0.3944,4540.0,4539.7,0.3845]
[1756351712733,0.3944,4540.0,4539.6,0.39647]
[1756351712734,0.3944,4540.0,4539.9,2.36602776]
[1756351712936,3.3078,4540.2,4539.9,2.36602776]
[1756351712937,3.9813,4540.2,4539.9,2.17356776]
[1756351713138,4.1698,4540.2,4540.1,0.3845]
[1756351713438,1.2507,4540.2,4540.1,0.9734]
[1756351713931,1.7494,4540.2,4540.1,0.9734]
[1756351714433,1.7494,4540.2,4539.2,3.2078]
[1756351714635,1.1507,4539.4,4539.3,0.6869]
[1756351714839,0.862,4539.4,4539.3,0.6869]
[1756351715030,0.3944,4539.6,4539.4,0.3024]
[1756351715229,0.862,4539.6,4539.5,0.9734]
[1756351715640,1.1507,4539.6,4539.5,0.9734]
[1756351716237,1.3438,4539.6,4539.5,0.9734]
[1756351716435,1.6494,4539.6,4539.5,0.9734]
[1756351718135,1.4563,4539.6,4539.5,2.36602776]
[1756351718336,1.1507,4539.6,4539.5,2.36602776]
[1756351720043,0.862,4539.6,4539.5,2.36602776]
[1756351720441,0.5943,4539.9,4539.5,2.36602776]
[1756351720652,1.1507,4539.9,4539.8,0.9734]
[1756351721043,1.3438,4539.9,4539.8,0.9734]
[1756351721244,1.6494,4539.9,4539.8,0.9734]
[1756351721443,0.862,4539.9,4539.8,0.9734]
[1756351721648,0.2791,4539.9,4539.8,0.9734]
[1756351721837,1.0622,4540.2,4539.9,0.39644]
[1756351722147,1.2507,4540.2,4540.1,0.9734]
[1756351722446,1.5563,4540.2,4540.1,0.9734]
[1756351722945,1.2507,4540.2,4540.1,0.9734]
[1756351725037,0.962,4540.2,4540.1,0.9734]
[1756351725651,1.2507,4540.2,4540.1,0.9734]
[1756351726747,1.4438,4540.2,4539.7,0.69886]
[1756351727049,0.9622,4539.8,4539.7,0.39646]
[1756351727250,0.6735,4539.8,4539.7,41.58096]
[1756351727452,0.6735,4539.8,4539.7,42.16986]
[1756351727851,0.862,4539.8,4539.7,1.36986]
[1756351728353,1.1507,4539.8,4539.7,1.36986]
[1756351729053,1.6494,4539.8,4539.7,0.9734]
[1756351729657,0.6607,4538.8,4538.6,1.96382124]
[1756351729950,1.6494,4538.4,4538.3,0.4803]
[1756351730650,1.6494,4538.4,4538.3,0.8939]
[1756351731343,0.6006,4538.3,4538.1,0.2893]
[1756351731544,0.6585,4537.7,4537.6,2.75102776]
[1756351731850,1.6839,4537.7,4537.6,2.75102776]
[1756351732549,1.6839,4537.7,4537.6,1.1619]
[1756351732752,1.6839,4537.7,4537.6,0.202]
[1756351732946,4.2911,4537.7,4537.3,0.2893]
[1756351733150,1.38,4537.4,4537.3,0.4913]
[1756351733347,1.6839,4537.4,4537.3,0.4913]
[1756351733649,1.6839,4537.4,4537.3,0.8927]
[1756351733848,1.6839,4537.4,4537.3,1.3584]
[1756351736453,1.6839,4537.4,4537.3,0.4913]
[1756351736653,1.6839,4537.1,4537.0,0.4913]
[1756351737053,0.1889,4536.5,4536.4,3.6735]
[1756351737260,0.4928,4536.5,4536.4,4.2592]
[1756351737457,0.3039,4536.5,4536.4,4.4612]
[1756351737656,0.3039,4536.5,4536.4,45.5505]
[1756351737850,0.3039,4539.1,4539.0,1.0691]
[1756351738056,0.3039,4539.1,4539.0,2.93532776]
[1756351738262,0.4928,4539.1,4539.0,2.93532776]
[1756351738456,0.764,4540.0,4539.9,0.4657]
[1756351738756,1.6839,4540.0,4539.9,1.3584]
[1756351738949,1.6839,4540.0,4539.9,0.4913]
[1756351739254,1.6839,4540.0,4539.9,1.3584]
[1756351740249,1.6839,4540.0,4539.9,0.957]
[1756351740457,1.6839,4540.0,4539.9,0.4913]
[1756351741556,1.0833,4540.0,4539.7,0.2893]
[1756351741760,0.7287,4539.7,4539.4,41.0893]
[1756351742060,1.6839,4539.5,4539.4,41.0893]
[1756351742557,1.6839,4539.5,4539.4,0.4913]
[1756351743260,1.6839,4539.5,4539.4,1.3584]
[1756351743462,1.3872,4539.5,4539.4,1.3584]
[1756351743854,1.1888,4539.5,4539.4,1.3584]
[1756351744461,0.764,4539.5,4539.4,1.3584]
[1756351746162,1.1888,4539.5,4539.4,1.3584]
[1756351746553,1.6839,4539.5,4539.4,1.3584]
[1756351747062,1.6839,4539.5,4539.4,0.4913]
[1756351747262,1.6839,4539.5,4539.4,1.3584]
[1756351749765,1.3872,4539.5,4539.4,1.3584]
[1756351750059,1.1888,4539.5,4539.4,1.3584]
[1756351750566,0.3039,4539.5,4539.4,1.5419]
[1756351750865,0.4928,4539.5,4539.4,1.5419]
[1756351751065,0.764,4539.5,4539.4,1.5419]
[1756351751265,1.1888,4539.5,4539.4,1.3584]
[1756351753270,0.764,4539.5,4539.4,1.5419]
[1756351757073,1.1888,4539.5,4539.4,1.5419]
[1756351757276,1.1888,4539.5,4539.4,1.3584]
[1756351757873,1.0833,4539.5,4539.2,0.2893]
[1756351758173,1.6839,4539.3,4539.2,1.75491]
[1756351758474,1.3872,4539.3,4539.2,1.75491]
[1756351758866,1.6839,4539.3,4539.2,1.75491]
[1756351759275,1.6839,4539.3,4539.2,3.1429671]
[1756351760572,0.764,4539.3,4539.2,3.1429671]
[1756351760776,0.764,4539.3,4539.2,3.3264671]
[1756351761879,0.764,4539.3,4539.2,1.75491]
[1756351762081,1.1698,4539.3,4539.2,1.75491]
[1756351762479,1.1698,4539.3,4539.2,1.93851]
[1756351765680,1.1698,4539.3,4539.2,1.75491]
[1756351767373,1.6578,4539.3,4539.2,1.28921]
[1756351767768,1.6578,4539.3,4539.2,1.74781]
[1756351773385,1.6578,4539.3,4539.0,42.76382124]
[1756351773577,1.6578,4539.3,4538.9,0.99403]
[1756351773578,1.6661,4539.0,4538.9,0.99403]
[1756351773883,1.6661,4539.0,4538.9,1.45263]
[1756351774279,1.6661,4539.0,4538.9,1.74883]
[1756351775481,1.4754,4539.0,4538.9,1.74883]
[1756351775685,1.1781,4539.0,4538.9,1.74883]
[1756351775888,1.4754,4539.0,4538.9,1.74883]
[1756351776384,1.6661,4539.0,4538.9,1.74883]
[1756351778574,1.6661,4539.0,4538.9,4.95663]
[1756351782581,1.88642,4539.0,4538.7,1.96382124]
[1756351782885,1.375,4538.3,4538.2,0.2962]
[1756351783079,1.6661,4538.3,4538.2,0.2962]
[1756351783484,1.6661,4538.3,4538.2,0.491]
[1756351783881,0.9025,4538.3,4538.2,1.3523]
[1756351784081,1.6661,4538.9,4538.8,1.3523]
[1756351784775,1.6661,4538.9,4538.8,1.1584]
[1756351785580,1.6661,4538.9,4538.8,0.7557]
[1756351785781,1.6661,4538.9,4538.8,1.3523]
[1756351785981,1.6661,4538.9,4538.8,1.1584]
[1756351787181,3.2078,4539.0,4538.8,1.3523]
[1756351787387,0.2911,4539.0,4538.9,1.93244]
[1756351787585,1.0777,4539.6,4539.5,0.39648]
[1756351787888,1.375,4539.6,4539.5,1.74878]
[1756351788087,1.6661,4539.6,4539.5,1.3523]
[1756351788887,1.1781,4539.6,4539.5,1.3523]
[1756351789087,0.7723,4539.6,4539.5,1.3523]
[1756351789384,1.6661,4539.6,4539.5,1.3523]
[1756351791391,1.3688,4539.6,4539.5,1.3523]
[1756351791989,0.7723,4539.6,4539.5,1.3523]
[1756351792290,0.2911,4539.6,4539.5,1.535]
[1756351792886,0.479,4539.6,4539.5,1.535]
[1756351793084,1.3585,4539.6,4539.5,1.3523]
[1756351793293,1.6367,4539.6,4539.5,1.3523]
[1756351797890,1.6367,4539.6,4539.5,1.1584]
[1756351798097,1.6307,4539.5,4539.4,1.15169]
[1756351798299,1.6307,4539.5,4539.4,1.57689]
[1756351798489,1.6307,4539.5,4539.4,1.77249]
[1756351799992,1.6307,4539.5,4539.4,1.15169]
[1756351800192,1.6307,4539.5,4539.4,0.7552]
[1756351800494,1.6307,4539.5,4539.4,0.4873]
[1756351801095,1.6307,4539.5,4539.4,1.376]
[1756351802094,1.1577,4539.5,4539.4,1.376]
[1756351803391,0.473,4539.5,4539.4,1.5596]
[1756351803889,1.1577,4539.5,4539.4,1.376]
[1756351804097,1.4359,4539.5,4539.4,1.376]
[1756351804292,1.6307,4539.5,4539.4,1.376]
[1756351804595,1.6307,4539.5,4539.4,1.1804]
[1756351804892,1.6307,4539.5,4539.4,1.376]
[1756351805799,0.2851,4539.5,4539.4,1.5596]
[1756351806199,0.8969,4539.5,4539.4,1.5596]
[1756351806399,1.6307,4539.5,4539.4,1.376]
[1756351806698,1.6307,4539.5,4539.4,42.176]
[1756351807101,0.9217,4539.3,4539.2,0.2972]
[1756351807298,1.2068,4539.2,4539.1,0.39652]
[1756351807495,1.6307,4539.2,4539.1,0.39652]
[1756351809098,1.6307,4538.9,4538.8,0.4873]
[1756351809401,1.6307,4538.8,4538.7,4.98035]
[1756351810804,1.6307,4538.8,4538.7,3.2078]
[1756351811802,1.6307,4538.8,4538.7,4.5838]
[1756351813197,3.3957,4539.5,4539.4,0.59209]
[1756351813397,0.4239,4540.6,4540.5,1.0788]
[1756351813602,0.8726,4540.6,4540.5,2.7640571]
[1756351813817,1.3525,4540.6,4540.5,2.7640571]
[1756351814103,1.6307,4540.6,4540.5,2.7640571]
[1756351815800,1.1577,4540.6,4540.5,2.7640571]
[1756351816003,0.7338,4540.6,4540.5,2.7640571]
[1756351816997,1.1577,4540.6,4540.5,2.7640571]
[1756351817993,0.473,4540.6,4540.5,2.9476571]
[1756351818198,0.2851,4540.6,4540.5,2.7640571]
[1756351818399,0.2851,4540.6,4540.5,2.9476571]
[1756351821100,3.2078,4541.5,4540.6,0.99098]
[1756351821311,1.3456,4541.5,4541.4,1.376]
[1756351821807,1.6252,4541.5,4541.4,1.376]
[1756351822706,1.1522,4541.5,4541.4,1.376]
[1756351822908,0.4675,4541.5,4541.4,1.5593]
[1756351824007,0.8648,4542.1,4542.0,1.77857]
[1756351824404,1.3497,4542.4,4542.3,1.3823]
[1756351824607,1.0588,4542.4,4542.0,0.39626]
[1756351824909,1.6293,4542.2,4542.1,1.1786]
[1756351825298,1.3497,4543.4,4543.3,1.0103]
[1756351825608,1.3497,4543.4,4543.3,0.4027]
[1756351825803,1.3497,4543.3,4543.2,0.2037]
[1756351826205,1.3497,4543.3,4542.9,40.8]
[1756351826206,0.6479,4543.0,4542.9,40.8]
[1756351826506,1.2184,4542.6,4542.5,1.3823]
[1756351827012,1.23123468,4542.6,4542.5,42.1823]
[1756351828009,1.23765202,4542.6,4542.5,42.1823]
[1756351828502,1.64855202,4542.6,4542.5,42.1823]
[1756351829110,1.65496936,4542.6,4542.5,40.999]
[1756351829411,1.65496936,4542.6,4542.5,1.1086]
[1756351829702,1.65496936,4542.6,4542.5,1.37179165]
[1756351830211,1.65954554,4542.6,4542.5,1.37179165]
[1756351831605,1.65954554,4542.6,4542.5,0.89439165]
[1756351831911,1.2184,4542.4,4542.3,1.1086]
[1756351832213,1.65954554,4542.4,4542.3,1.3823]
[1756351832910,1.65954554,4542.4,4542.3,1.6883]
[1756351833708,0.9814,4542.3,4542.2,40.8]
[1756351834010,1.01164554,4542.3,4542.2,41.5059]
[1756351834505,1.65954554,4542.3,4542.2,1.3823]
[1756351835405,0.49584554,4542.3,4542.2,1.6883]
[1756351835907,0.30984554,4542.3,4542.2,1.6883]
[1756351836112,0.31626348,4542.3,4542.2,1.6883]
[1756351836614,0.03666348,4542.3,4542.2,1.6883]
[1756351837011,0.00300045,4542.4,4542.2,1.6883]
[1756351837211,1.67238142,4542.3,4542.2,1.3823]
[1756351838110,1.67879936,4542.3,4542.2,1.3823]
[1756351838416,1.67879936,4542.3,4542.2,0.4027]
[1756351838610,1.67879936,4542.3,4542.2,0.199]
[1756351839006,0.4539,4542.1,4542.0,40.8]
[1756351839212,1.6293,4542.1,4542.0,40.8]
[1756351839513,1.6293,4542.0,4541.9,0.7059]
[1756351839709,1.6293,4542.0,4541.4,0.306]
[1756351839911,0.9275,4541.6,4541.5,5.2924]
[1756351840112,0.7894173,4541.6,4541.5,5.2924]
[1756351840316,1.6852173,4541.6,4541.5,5.2924]
[1756351840909,1.6852173,4541.6,4541.5,4.8961]
[1756351841214,1.6852173,4541.6,4541.5,42.1823]
[1756351842816,1.6852173,4541.6,4541.5,1.3823]
[1756351843314,1.6852173,4541.6,4541.5,1.6883]
[1756351846518,0.5215173,4541.6,4541.5,1.6883]
[1756351846712,1.6852173,4541.6,4541.5,1.3823]
[1756351849122,0.9834173,4541.6,4541.5,1.6883]
[1756351849324,0.3355173,4541.6,4541.5,1.6883]
[1756351849718,1.38679808,4542.6,4541.5,1.6883]
[1756351849719,0.2796,4543.5,4541.6,2.20169]
[1756351849928,0.7018,4544.3,4544.2,0.1884]